bitfinex/quotes_ETHUSD_20220310
["timestamp","ask_amount","ask_price","bid_price","bid_amount"]
[1646876326624,0.00353709,2706.7,2706.3,0.06891102]
[1646876326823,7.3898,2706.9,2706.3,0.06891102]
[1646876327125,0.00353711,2706.6,2706.3,0.06891102]
[1646876327422,7.3898,2706.9,2706.6,0.00707422]
[1646876327665,1.02838465,2706.8,2706.6,0.00707422]
[1646876328268,1.32838465,2706.8,2706.6,0.00707422]
[1646876328878,3.5,2706.7,2706.6,0.00707422]
[1646876329069,3.5,2706.7,2705.3,0.07610649]
[1646876329070,1.12389457,2705.7,2705.3,0.07610649]
[1646876329270,1.12389457,2705.7,2705.3,0.0014483]
[1646876329271,1.42389457,2705.7,2705.3,0.0014483]
[1646876329468,1.42389457,2705.7,2704.8,0.0072823]
[1646876331066,0.011667,2706.1,2704.8,0.0072823]
[1646876331314,1.84897,2706.2,2705.2,0.07738475]
[1646876331516,1.84897,2706.2,2705.3,0.445]
[1646876331713,1.84897,2706.2,2705.5,0.08506876]
[1646876331913,2.77339,2706.7,2705.7,0.0899688]
[1646876332119,2.05632862,2706.3,2705.7,0.5349688]
[1646876332514,2.05632862,2706.3,2705.7,0.0899688]
[1646876332714,2.05632862,2706.3,2705.3,0.0014483]
[1646876332914,2.05632862,2706.3,2705.1,0.00178963]
[1646876333115,0.88264651,2705.7,2705.1,0.00178963]
[1646876333315,0.92433,2706.3,2705.2,0.445]
[1646876333518,0.92433,2706.3,2705.3,0.06890558]
[1646876333714,0.92433,2706.3,2705.4,0.445]
[1646876334314,0.96439628,2706.0,2705.4,0.445]
[1646876334515,0.96439628,2706.0,2705.3,0.06890558]
[1646876334715,0.96439628,2706.0,2705.1,0.00178963]
[1646876334915,0.96439628,2706.0,2705.1,0.44678963]
[1646876335167,0.96439628,2706.0,2705.2,0.0809754]
[1646876336173,0.96439628,2706.0,2705.1,0.00178963]
[1646876337670,0.91439628,2706.0,2705.1,0.00178963]
[1646876339915,3.5,2705.9,2705.0,0.08782178]
[1646876340119,3.5,2705.9,2704.8,0.005834]
[1646876340120,0.92447,2705.8,2704.8,0.005834]
[1646876340321,1.84946,2705.7,2704.4,0.07802188]
[1646876340719,3.5,2705.6,2704.4,0.07802188]
[1646876340922,1.08478446,2705.2,2704.2,0.93798569]
[1646876341125,2.00947446,2705.2,2704.3,0.08096045]
[1646876341723,2.14955,2705.6,2704.3,0.08096045]
[1646876342127,0.92459,2705.4,2704.3,0.52596045]
[1646876342574,0.3,2705.6,2704.3,0.52596045]
[1646876342764,0.3,2705.6,2704.7,0.34598948]
[1646876343266,0.3,2705.9,2704.7,0.34598948]
[1646876343568,1.860687,2706.0,2704.8,0.445]
[1646876343569,0.9,2705.4,2704.8,0.445]
[1646876343768,0.011667,2706.0,2705.9,0.92854174]
[1646876343971,6.03986234,2706.8,2705.1,0.08873116]
[1646876343972,1.21706234,2706.8,2705.8,0.445]
[1646876344167,8.31393,2706.9,2705.9,0.08743035]
[1646876345171,0.92423,2706.6,2705.9,0.08743035]
[1646876345774,0.00347544,2706.7,2706.0,0.445]
[1646876345972,0.00347544,2706.7,2706.1,0.07213799]
[1646876346174,0.00347544,2706.7,2706.2,0.445]
[1646876346415,0.00347544,2706.7,2706.3,0.08730645]
[1646876346416,0.00248139,2706.7,2706.3,0.08730645]
[1646876346616,0.00248139,2706.7,2706.3,0.91895688]
[1646876346812,0.00248139,2706.7,2706.4,0.08175074]
[1646876347214,5.75883372,2706.9,2706.5,0.445]
[1646876347515,5.75883372,2706.9,2706.8,1.0]
[1646876347714,5.75883372,2706.9,2706.8,1.445]
[1646876348113,5.75883372,2706.9,2706.8,2.32558749]
[1646876348514,0.011667,2707.6,2706.9,3.7]
[1646876348720,0.011667,2707.6,2707.0,0.5307183]
[1646876349412,0.92361,2708.5,2707.4,0.40338768]
[1646876349413,0.011667,2708.2,2707.4,0.40338768]
[1646876351068,0.011667,2708.2,2707.4,1.4115097]
[1646876351272,0.00354773,2707.9,2707.6,0.0844675]
[1646876351471,0.00354773,2707.9,2707.7,0.445]
[1646876351472,4.773e-05,2707.9,2707.7,0.445]
[1646876351672,4.773e-05,2707.9,2707.8,11.28]
[1646876351872,4.773e-05,2707.9,2707.8,12.725]
[1646876352067,0.011667,2708.9,2707.8,12.725]
[1646876352268,0.011667,2708.9,2708.1,11.28]
[1646876352467,0.011667,2708.9,2708.6,1.17578224]
[1646876352670,2.44999066,2709.3,2708.7,0.08362648]
[1646876352870,0.011667,2709.5,2708.8,0.445]
[1646876353069,3.37319156,2709.9,2708.8,0.445]
[1646876353070,3.37315066,2709.9,2708.8,0.445]
[1646876353269,2.44999066,2709.9,2709.0,0.923]
[1646876353467,2.44999066,2709.9,2709.5,1.0]
[1646876353670,2.44892033,2710.5,2709.5,1.0]
[1646876353671,0.5,2710.2,2709.8,11.28]
[1646876353920,0.5,2710.2,2710.0,1.01165555]
[1646876354120,1.2064,2711.2,2710.2,3.7]
[1646876354121,0.00320052,2711.2,2710.2,3.7]
[1646876354320,0.00320052,2711.2,2710.3,1.44296799]
[1646876354321,0.0660658,2711.2,2710.3,1.44296799]
[1646876354522,0.0660658,2711.2,2710.4,0.08483241]
[1646876354718,0.0660658,2711.2,2710.3,1.36753]
[1646876354719,0.0660658,2711.2,2710.6,11.28]
[1646876354918,0.0660658,2711.2,2710.7,1.06084239]
[1646876354919,0.00247967,2710.8,2710.7,1.06084239]
[1646876355124,0.00247967,2710.8,2710.7,0.08314072]
[1646876355325,0.00247967,2710.8,2710.2,0.04989048]
[1646876355523,0.00247967,2710.8,2710.0,0.005834]
[1646876355524,0.012623,2710.5,2710.0,0.005834]
[1646876355724,0.012623,2710.5,2709.8,0.07873451]
[1646876355922,0.012623,2710.5,2709.6,0.06994145]
[1646876356122,0.012623,2710.5,2710.0,0.09047394]
[1646876356821,0.022623,2710.5,2710.0,0.09047394]
[1646876358365,0.022623,2710.5,2709.7,0.08857436]
[1646876358366,1.29214,2710.4,2709.7,0.08857436]
[1646876358571,0.381304,2710.3,2709.5,0.08508544]
[1646876358766,0.381304,2710.3,2709.1,0.09522241]
[1646876358767,0.6691,2710.1,2709.1,0.09522241]
[1646876358967,0.6691,2710.1,2709.1,0.09377411]
[1646876359268,1.19920967,2708.8,2708.5,0.0014483]
[1646876359467,1.19920967,2708.8,2708.4,0.08949016]
[1646876359468,9.59495,2709.8,2708.1,0.0014483]
[1646876359672,0.05351547,2709.5,2707.9,0.0014483]
[1646876359869,0.04976653,2709.3,2707.5,0.005834]
[1646876360067,0.3691,2709.2,2707.5,0.005834]
[1646876360270,0.3691,2709.0,2707.5,0.005834]
[1646876360474,0.3691,2708.7,2707.5,0.005834]
[1646876360672,0.90098725,2708.3,2707.5,11.285834]
[1646876360870,0.90098725,2708.3,2707.5,0.08309101]
[1646876361726,0.00353746,2708.4,2707.5,0.08309101]
[1646876361924,1.29273,2708.5,2707.6,0.07153088]
[1646876362126,0.0035376,2708.0,2707.6,0.07153088]
[1646876362334,0.0035376,2708.0,2707.4,0.08724601]
[1646876362529,0.0035376,2708.0,2707.1,0.20263175]
[1646876362727,0.0035376,2708.0,2707.1,0.11466611]
[1646876363128,0.6691,2708.2,2707.1,0.11466611]
[1646876363326,1.7633824,2708.2,2707.2,1.14217159]
[1646876363528,2.6871524,2708.2,2707.3,0.07594112]
[1646876363727,0.9238,2707.9,2707.3,0.07594112]
[1646876363929,2.51674,2708.2,2707.3,0.07594112]
[1646876364130,0.6691,2708.2,2707.3,0.07594112]
[1646876364328,0.7491,2708.2,2707.3,0.07594112]
[1646876364533,0.00350024,2708.0,2707.3,0.07594112]
[1646876365172,0.37260024,2708.0,2707.3,0.07594112]
[1646876365373,0.67260024,2708.0,2707.3,0.07594112]
[1646876365572,0.012615,2707.8,2707.1,0.11466611]
[1646876365770,0.012738,2707.6,2707.1,0.11466611]
[1646876365974,0.012738,2707.6,2706.9,0.07167471]
[1646876366171,0.012738,2707.6,2706.7,0.0072823]
[1646876366371,0.012738,2707.6,2707.1,1.11421487]
[1646876366572,0.012738,2707.6,2707.1,1.19764856]
[1646876366779,0.012615,2707.8,2707.2,0.08311619]
[1646876367576,0.012615,2707.8,2707.2,1.93020619]
[1646876367772,0.012615,2707.8,2707.3,0.07515018]
[1646876368814,0.012553,2707.6,2707.3,0.07515018]
[1646876369014,0.012553,2707.6,2706.9,0.08337158]
[1646876369415,0.013293,2707.3,2706.5,0.08118711]
[1646876369617,0.014347,2707.0,2706.5,0.08118711]
[1646876369814,0.924219,2706.9,2706.3,0.01414549]
[1646876370015,1.59337,2706.8,2706.3,0.01414549]
[1646876370227,0.012706,2706.6,2706.3,0.01414549]
[1646876370421,0.012706,2706.6,2705.9,0.005834]
[1646876370622,0.012706,2706.6,2706.1,0.00429015]
[1646876371022,0.92433,2706.5,2706.1,0.00429015]
[1646876371220,7.1966867,2707.3,2706.1,0.09125049]
[1646876371532,7.1966867,2707.3,2706.1,0.08696034]
[1646876371533,0.011667,2707.0,2706.1,0.08696034]
[1646876371920,0.9366947,2706.9,2706.1,0.08696034]
[1646876372120,0.937033,2706.7,2706.1,0.08696034]
[1646876372321,1.237033,2706.7,2706.1,0.08696034]
[1646876372578,0.935914,2706.7,2705.9,0.005834]
[1646876372966,0.935914,2706.7,2705.9,0.01999564]
[1646876373169,0.013764,2706.3,2705.9,0.01416164]
[1646876373374,3.8691,2706.6,2705.9,0.01416164]
[1646876373375,2.07270455,2706.0,2705.9,0.01416164]
[1646876373569,5.57270455,2706.0,2705.9,0.01416164]
[1646876373771,5.57270455,2706.0,2705.9,6.164e-05]
[1646876373772,5.79099694,2706.0,2705.9,6.164e-05]
[1646876373968,5.79099694,2706.0,2704.8,0.0014483]
[1646876373969,0.05284631,2705.8,2704.8,0.0014483]
[1646876374169,0.014347,2705.4,2704.6,0.07924945]
[1646876374372,0.014347,2705.4,2704.6,0.07780115]
[1646876374570,1.84943,2705.3,2704.6,0.07780115]
[1646876374774,1.20331137,2705.2,2704.6,0.07780115]
[1646876375072,1.20331137,2705.2,2704.4,0.09248204]
[1646876375276,1.20331137,2705.2,2704.4,0.005834]
[1646876375474,0.012756,2705.0,2704.4,0.005834]
[1646876375673,0.3,2705.3,2705.0,0.02551199]
[1646876375873,0.3,2705.6,2705.0,0.02551199]
[1646876376331,0.0534688,2705.5,2705.0,0.02551199]
[1646876376732,1.84952,2705.4,2705.2,0.00102906]
[1646876377132,2.14952,2705.4,2705.2,0.00102906]
[1646876377531,2.14952,2705.4,2705.0,0.02551199]
[1646876377735,1.84978,2705.3,2705.0,0.02551199]
[1646876379437,0.05235028,2705.2,2705.0,0.02551199]
[1646876379635,0.05235028,2705.2,2703.9,0.007]
[1646876379636,6.7,2705.1,2703.9,0.007]
[1646876379834,0.04499217,2704.7,2703.9,0.007]
[1646876380099,3.04499217,2704.7,2703.9,0.007]
[1646876380282,3.0,2704.5,2703.9,0.007]
[1646876380486,3.0,2704.2,2702.8,0.08743696]
[1646876380683,0.92562,2703.6,2702.3,3.57948302]
[1646876380884,0.92562,2703.6,2702.5,0.07333082]
[1646876380885,0.9256,2703.3,2702.5,0.07333082]
[1646876381089,0.9256,2703.3,2702.5,3.57188252]
[1646876381284,1.3,2704.2,2702.6,1.61480134]
[1646876381486,1.3,2704.2,2703.8,1.03511218]
[1646876381488,0.3,2704.2,2703.8,1.03511218]
[1646876381689,3.6379582,2705.0,2703.9,0.08666679]
[1646876381690,0.96676433,2705.0,2703.9,0.08666679]
[1646876381884,7.3911,2704.9,2703.9,0.08666679]
[1646876382086,0.92492,2704.8,2703.9,0.08666679]
[1646876382490,0.92492,2704.8,2703.4,0.08203536]
[1646876382686,9.2412008,2704.9,2703.4,0.08203536]
[1646876382889,0.92496,2704.7,2703.4,0.08203536]
[1646876383388,0.92496,2704.7,2703.5,0.99423867]
[1646876383587,1.59406,2704.7,2703.6,0.06911042]
[1646876383823,0.92507,2704.4,2703.6,0.06911042]
[1646876384024,1.85012,2704.4,2703.6,0.06911042]
[1646876384225,2.15012,2704.4,2703.6,0.06911042]
[1646876384431,1.85012,2704.4,2703.6,0.06911042]
[1646876384725,13.0165008,2704.9,2703.6,0.06911042]
[1646876384726,10.1664,2704.9,2703.6,0.06911042]
[1646876384928,10.1664,2704.9,2703.1,0.0014483]
[1646876384929,0.020303,2704.0,2703.1,0.0014483]
[1646876385130,0.92532,2704.2,2703.5,0.0014483]
[1646876385328,3.7,2704.0,2703.5,0.01245306]
[1646876385529,0.01835,2703.7,2703.5,0.01245306]
[1646876385928,0.04603394,2703.8,2703.5,0.01245306]
[1646876385929,0.90793263,2703.6,2703.5,0.01245306]
[1646876386130,0.04179242,2703.5,2702.8,0.0014483]
[1646876386329,0.92551,2703.3,2702.4,0.07565899]
[1646876386531,0.046384,2703.2,2702.3,0.0014483]
[1646876386730,0.382643,2703.5,2702.2,1.03]
[1646876386931,0.04818256,2703.2,2702.2,1.03]
[1646876387130,0.04818256,2703.2,2702.6,0.95687691]
[1646876387577,0.92555,2703.1,2702.6,0.95687691]
[1646876387766,0.011667,2703.5,2702.6,0.95687691]
[1646876387767,0.06364202,2703.5,2702.6,0.95687691]
[1646876387966,7.3911,2703.6,2702.7,0.081489]
[1646876388167,0.04843781,2703.5,2702.7,0.081489]
[1646876388569,0.04843781,2703.5,2703.2,0.95221068]
[1646876388769,0.97375781,2703.5,2702.7,0.081489]
[1646876388969,0.97375781,2703.5,2702.5,0.08437692]
[1646876389169,0.97375781,2703.5,2702.3,0.3691]
[1646876389369,0.92375781,2703.5,2702.4,0.08651901]
[1646876389570,0.93589881,2703.5,2702.4,0.08651901]
[1646876389769,0.92375781,2703.5,2703.1,1.01068182]
[1646876389977,0.87532,2703.5,2703.1,1.01068182]
[1646876390782,7.3911,2703.6,2703.1,12.37006841]
[1646876390983,7.3911,2703.6,2703.2,0.08370674]
[1646876391179,7.3911,2703.6,2703.3,0.445]
[1646876391421,7.3911,2703.6,2703.3,0.52729465]
[1646876391822,7.3911,2703.6,2703.4,11.28]
[1646876392023,5.60507611,2703.6,2703.5,0.07180786]
[1646876392224,3.15291936,2703.6,2703.5,0.07180786]
[1646876392622,3.15291936,2703.6,2703.4,0.445]
[1646876392821,3.15291936,2703.6,2703.5,0.07241395]
[1646876393628,3.15291936,2703.6,2703.4,0.00310553]
[1646876393928,0.43392548,2703.4,2702.5,0.0014483]
[1646876394138,7.2,2703.5,2702.2,0.25829182]
[1646876394139,0.01219402,2702.9,2702.2,0.25829182]
[1646876394327,0.02688,2702.3,2702.2,0.25829182]
[1646876394527,1.53130534,2702.7,2702.2,0.25829182]
[1646876394727,0.01219402,2702.9,2702.2,0.25829182]
[1646876394728,0.06289955,2702.6,2702.2,0.25829182]
[1646876394935,0.011667,2703.3,2702.2,0.25829182]
[1646876395201,0.0669728,2703.3,2702.2,0.25829182]
[1646876395401,0.0669728,2703.3,2702.3,11.6491]
[1646876395601,0.0669728,2703.3,2702.9,1.15366729]
[1646876395803,0.0669728,2703.3,2702.9,12.43366729]
[1646876395804,0.0553058,2703.3,2702.9,12.43366729]
[1646876396000,0.0553058,2703.3,2702.9,12.87866729]
[1646876396400,0.05816474,2703.5,2702.9,12.87866729]
[1646876396600,0.05816474,2703.5,2703.0,0.3691]
[1646876396799,3.15291936,2703.6,2703.1,0.445]
[1646876397001,3.15291936,2703.6,2703.1,11.725]
[1646876397204,3.15291936,2703.6,2703.1,0.445]
[1646876397400,0.06877389,2703.5,2703.1,0.445]
[1646876397604,0.06877389,2703.5,2702.7,0.445]
[1646876397800,0.06877389,2703.5,2702.5,0.445]
[1646876398001,0.06877389,2703.5,2702.2,11.53965131]
[1646876398002,0.02072,2703.2,2702.3,0.445]
[1646876398202,0.9254,2703.1,2702.2,11.53965131]
[1646876398503,0.08374895,2702.9,2702.2,0.26197076]
[1646876399120,0.03374895,2702.9,2702.2,0.26197076]
[1646876399322,0.03374895,2702.9,2702.2,0.25829182]
[1646876399522,1.12226687,2702.5,2702.4,0.00091966]
[1646876400126,0.0527203,2702.7,2702.4,0.00091966]
[1646876400526,0.0527203,2702.7,2702.2,0.25829182]
[1646876400726,0.0527203,2702.7,2702.4,0.00091966]
[1646876401628,0.0527203,2702.7,2702.2,0.25829182]
[1646876402027,6.03603131,2702.8,2702.2,0.25829182]
[1646876402028,0.942962,2702.3,2702.2,0.25829182]
[1646876402228,1.312062,2702.3,2702.2,0.25829182]
[1646876402868,1.595,2702.3,2702.2,0.25829182]
[1646876403771,4.0691,2702.2,2702.1,0.00091951]
[1646876403973,7.5691,2702.2,2702.1,0.00091951]
[1646876404170,7.5691,2702.2,2700.9,0.00135949]
[1646876404171,0.92608,2701.6,2700.9,0.00135949]
[1646876404370,0.92608,2701.6,2700.9,1.53389557]
[1646876404570,1.07462838,2701.5,2700.9,1.53389557]
[1646876404774,4.94372838,2701.5,2700.9,1.53389557]
[1646876404972,1.44372838,2701.5,2700.9,1.53389557]
[1646876405375,7.5740222,2701.4,2700.9,1.53389557]
[1646876405574,8.1740222,2701.4,2701.1,0.00091986]
[1646876405775,9.1740222,2701.4,2701.1,0.00091986]
[1646876406174,1.4751,2701.3,2701.1,0.00091986]
[1646876406431,4.9751,2701.2,2700.8,8.17]
[1646876406636,1.4751,2701.0,2700.8,8.17]
[1646876406830,2.4015147,2701.0,2700.8,8.17]
[1646876407029,2.7015147,2701.0,2700.8,8.17]
[1646876407228,3.0143937,2701.0,2700.8,8.17]
[1646876407427,4.37277646,2701.0,2700.8,8.17]
[1646876407629,0.54664851,2700.9,2700.7,1.426e-05]
[1646876407929,2.78578551,2700.8,2700.4,1.53444372]
[1646876408132,0.017932,2700.5,2700.3,3.27351953]
[1646876408329,1.47338851,2700.4,2700.3,3.27351953]
[1646876408528,2.63090597,2700.4,2700.3,3.27351953]
[1646876408729,2.63090597,2700.4,2700.1,0.03112424]
[1646876408730,0.54664851,2700.2,2700.1,0.03112424]
[1646876408931,0.54664851,2700.2,2700.1,1.56571217]
[1646876409235,0.013446,2700.3,2700.2,1.09329702]
[1646876409236,1.313446,2700.3,2700.2,1.09329702]
[1646876409431,0.313446,2700.3,2700.2,1.09329702]
[1646876409631,4.08018,2700.4,2700.2,2.62788495]
[1646876409632,2.45347,2700.4,2700.2,2.62788495]
[1646876409831,1.52673,2700.4,2700.3,1.53458793]
[1646876410071,0.92673,2700.4,2700.3,1.53458793]
[1646876411279,0.011667,2700.6,2700.3,1.53458793]
[1646876411478,0.011667,2700.8,2700.3,1.53458793]
[1646876411678,7.1537,2701.3,2700.4,0.3691]
[1646876411679,0.5,2700.9,2700.4,0.3691]
[1646876411882,1.2137,2701.9,2700.6,11.6491]
[1646876411883,0.011667,2701.4,2700.6,11.6491]
[1646876412079,0.011667,2701.8,2700.8,11.6491]
[1646876412278,0.011667,2701.8,2701.5,1.23320536]
[1646876412477,0.00341872,2701.9,2701.0,1.0]
[1646876412478,0.00341872,2701.9,2701.6,1.53458793]
[1646876412682,0.012237,2701.8,2701.2,0.11699158]
[1646876412881,0.012237,2701.8,2701.3,1.53396001]
[1646876413479,0.04318438,2701.6,2701.3,1.53396001]
[1646876413682,0.92111823,2701.7,2701.3,1.53396001]
[1646876413683,0.937647,2701.7,2701.3,1.53396001]
[1646876414127,0.011667,2701.7,2700.8,0.00135949]
[1646876414327,0.011667,2701.7,2700.7,1.53406919]
[1646876414328,0.06497846,2701.7,2700.7,1.53406919]
[1646876414534,0.017612,2701.3,2700.8,1.53406919]
[1646876414731,0.017612,2701.3,2700.9,1.53406919]
[1646876414732,2.166352,2701.2,2700.9,1.53406919]
[1646876414931,0.01697,2701.0,2700.3,0.66167374]
[1646876415131,0.014627,2700.8,2700.3,0.66031425]
[1646876415332,0.014627,2700.8,2700.6,0.00091301]
[1646876415738,0.011667,2701.2,2700.6,0.00091301]
[1646876415932,1.50711083,2701.5,2700.6,0.00091301]
[1646876416132,1.80711083,2701.5,2700.6,1.53520195]
[1646876416332,1.0,2700.8,2700.7,1.53428894]
[1646876416736,1.0,2700.8,2700.6,1.53732128]
[1646876417037,1.0,2700.8,2700.7,1.53428894]
[1646876417232,1.0,2700.8,2700.6,0.00303234]
[1646876417433,1.0,2700.8,2700.5,0.66031425]
[1646876417686,2.0,2700.8,2700.6,2.19460319]
[1646876417888,2.0,2700.8,2700.7,3.28801137]
[1646876418491,1.0,2700.8,2700.7,3.28801137]
[1646876418692,1.0,2701.8,2700.7,2.62769712]
[1646876418890,1.0,2701.8,2701.2,0.6768224]
[1646876419287,1.0,2701.8,2701.2,2.21111134]
[1646876419489,1.0,2701.8,2701.3,0.6768224]
[1646876419692,1.0,2701.8,2701.4,1.53428894]
[1646876419889,1.0,2701.8,2701.3,2.86402454]
[1646876420089,1.0,2701.8,2701.4,1.53428894]
[1646876420294,1.0,2701.8,2701.5,0.6768224]
[1646876420494,0.00316078,2701.9,2701.8,4.7]
[1646876420693,0.00316078,2701.9,2701.8,2.53428894]
[1646876421192,0.005834,2702.6,2701.8,3.57998314]
[1646876421430,0.005834,2702.6,2701.9,1.53428894]
[1646876421431,0.00316094,2702.0,2701.9,1.53428894]
[1646876422429,0.005834,2702.6,2702.1,0.00948281]
[1646876422630,1.85127,2702.8,2702.2,1.53428894]
[1646876423035,5.72065,2702.7,2702.2,1.53428894]
[1646876423238,1.106,2702.4,2702.1,0.00948281]
[1646876423437,2.0318463,2702.4,2702.1,0.00948281]
[1646876423636,2.22986843,2702.2,2702.1,0.00948281]
[1646876423835,2.52986843,2702.2,2702.1,0.00948281]
[1646876424336,2.22986843,2702.2,2702.1,0.00948281]
[1646876424536,1.106,2702.2,2702.1,0.00948281]
[1646876424738,1.106,2702.2,2702.1,1.54303553]
[1646876425178,1.106,2702.2,2702.1,1.54299947]
[1646876425378,1.406,2702.2,2702.1,1.5429696]
[1646876425580,1.106,2702.2,2702.1,1.5429696]
[1646876425880,1.106,2702.2,2702.1,1.62504196]
[1646876426679,2.106,2702.2,2702.1,1.62504196]
[1646876426980,2.106,2702.2,2702.1,0.00948281]
[1646876427383,2.106,2702.2,2702.1,1.54295552]
[1646876427580,2.106,2702.2,2702.1,1.54296545]
[1646876427780,2.106,2702.2,2702.1,0.00948281]
[1646876428930,5.906,2702.2,2702.1,0.00948281]
[1646876429330,1.106,2702.0,2701.8,1.0]
[1646876429727,2.1329827,2701.9,2701.8,1.0]
[1646876430130,2.4012623,2701.7,2700.8,0.00135949]
[1646876430333,1.106,2701.3,2700.7,1.53390422]
[1646876430532,1.106,2701.2,2700.8,1.53390422]
[1646876430732,1.106,2701.2,2700.9,1.53390422]
[1646876430733,2.0322,2701.2,2700.9,1.53390422]
[1646876430931,2.0322,2701.2,2700.3,1.53526371]
[1646876430932,2.4013,2701.2,2700.3,1.53526371]
[1646876431130,2.4013,2701.2,2700.6,0.00303234]
[1646876431131,2.28841623,2701.0,2700.6,0.00303234]
[1646876431334,1.106,2701.0,2700.6,0.00303234]
[1646876431536,1.106,2700.9,2700.6,0.00303234]
[1646876432131,1.106,2700.9,2700.3,2.21172517]
[1646876432332,1.106,2700.9,2700.6,0.0009097]
[1646876432583,2.03233,2700.8,2700.6,0.0009097]
[1646876432780,2.03232,2700.8,2700.4,1.48501498]
[1646876432981,2.40142,2700.8,2700.2,1.09329702]
[1646876434079,3.40142,2700.8,2700.2,1.09329702]
[1646876434481,1.106,2700.5,2700.2,1.09329702]
[1646876434682,1.106,2700.0,2699.8,0.97548831]
[1646876434883,3.5,2700.4,2699.7,0.15966864]
[1646876434884,1.106,2699.8,2699.7,0.15966864]
[1646876435287,1.106,2699.8,2699.1,0.02429682]
[1646876435288,2.1665142,2699.5,2698.8,0.49667579]
[1646876435489,2.1665142,2699.5,2698.6,0.01470523]
[1646876435490,3.0,2699.2,2698.6,0.01470523]
[1646876435686,6.34743,2699.1,2698.6,0.01470523]
[1646876435885,3.04284736,2699.2,2698.7,0.06260884]
[1646876435886,0.39597964,2699.0,2698.7,0.06260884]
[1646876436092,0.39597964,2699.0,2698.7,0.084355]
[1646876436537,0.39597964,2698.8,2698.7,0.084355]
[1646876436739,0.34597964,2698.8,2698.7,0.084355]
[1646876437142,1.0,2699.2,2698.7,1.40440682]
[1646876437440,1.106,2699.1,2698.8,3.7]
[1646876437641,1.0,2699.2,2699.1,1.3495288]
[1646876438238,1.0,2699.2,2699.1,0.3495288]
[1646876438239,1.3,2699.2,2699.1,0.3495288]
[1646876438441,3.0,2699.0,2698.5,0.06800497]
[1646876438641,1.8543,2698.8,2698.5,0.10685405]
[1646876438840,6.20905466,2698.7,2698.5,0.10685405]
[1646876439039,0.3,2698.6,2698.5,0.10685405]
[1646876439439,3.45291936,2698.7,2698.5,0.10685405]
[1646876439640,3.15291936,2698.7,2698.5,0.10685405]
[1646876439842,3.45291936,2698.7,2698.5,0.10685405]
[1646876440086,7.2,2698.6,2698.5,0.07959108]
[1646876440293,3.4,2698.4,2698.2,0.00716074]
[1646876440488,3.5,2698.3,2698.2,0.00716074]
[1646876440788,4.0,2698.2,2697.8,0.0556387]
[1646876440987,1.04349192,2698.1,2697.8,0.0556387]
[1646876441187,0.07338904,2698.0,2697.8,0.0556387]
[1646876441389,3.7,2697.9,2697.7,0.03621464]
[1646876441589,4.42757,2697.8,2697.4,0.04337254]
[1646876441889,4.42757,2697.8,2697.3,0.07278016]
[1646876441890,3.7,2697.6,2697.3,0.07278016]
[1646876442098,3.7,2697.4,2697.2,0.03028672]
[1646876442293,3.7,2697.4,2696.1,0.03690278]
[1646876442294,3.6,2697.2,2696.1,0.03690278]
[1646876442490,0.01259405,2696.7,2696.1,0.03690278]
[1646876442688,3.7,2696.5,2695.9,0.02272704]
[1646876442908,4.145,2696.4,2695.9,0.02272704]
[1646876443096,3.7,2696.1,2695.1,0.05022154]
[1646876443290,3.7,2696.1,2695.3,0.1100552]
[1646876443291,3.895,2696.0,2695.3,0.1100552]
[1646876443490,0.92832,2695.8,2695.3,0.1100552]
[1646876443693,3.5,2695.9,2695.3,0.1100552]
[1646876443694,0.92828,2695.5,2695.3,0.1100552]
[1646876443933,0.92828,2695.5,2695.4,0.05400023]
[1646876444132,2.78483,2695.6,2695.4,0.05400023]
[1646876444133,0.92827,2695.6,2695.4,0.05400023]
[1646876444333,0.92827,2695.6,2695.4,0.19412783]
[1646876444731,0.92827,2695.6,2695.5,0.05343181]
[1646876444931,0.92827,2695.6,2695.3,0.17566497]
[1646876445135,1.92827,2695.6,2695.3,0.17566497]
[1646876445540,1.85618,2695.8,2695.6,1.34972986]
[1646876445737,1.85618,2695.8,2695.6,1.44556531]
[1646876446133,1.8560197,2696.1,2695.6,0.44556531]
[1646876446134,3.92803,2696.0,2695.6,0.44556531]
[1646876446337,0.93008335,2695.9,2695.6,0.44556531]
[1646876446536,2.15587,2696.2,2695.6,0.44556531]
[1646876446537,1.85587,2696.2,2695.6,0.44556531]
[1646876446738,1.6842,2696.7,2695.8,0.012341]
[1646876447235,1.85574,2696.4,2695.8,0.011341]
[1646876447434,1.85574,2696.4,2695.8,0.09761301]
[1646876447675,0.88044178,2696.1,2695.8,0.09761301]
[1646876447873,0.88044178,2696.1,2695.8,0.08627201]
[1646876448274,1.80845178,2696.1,2696.0,0.0008813]
[1646876448575,1.8560159,2696.1,2696.0,0.02878554]
[1646876448774,0.92799,2696.4,2696.0,0.02878554]
[1646876449175,1.85589,2696.4,2696.0,0.02790424]
[1646876449576,1.18255023,2696.1,2696.0,0.02790424]
[1646876450183,1.85589,2696.4,2696.0,0.02790424]
[1646876450380,0.92799,2696.4,2696.0,0.02790424]
[1646876450781,2.0,2696.5,2696.0,0.02790424]
[1646876452028,2.0,2696.5,2696.1,0.00293751]
[1646876452428,2.0,2696.5,2696.1,0.03084175]
[1646876452630,1.01868316,2696.3,2696.1,0.03084175]
[1646876452830,1.01868316,2696.3,2696.1,0.02790424]
[1646876453031,1.01868316,2696.3,2696.2,0.00293745]
[1646876453432,1.01868316,2696.3,2696.2,0.03084169]
[1646876453931,4.17160252,2696.3,2696.2,0.03084169]
[1646876454132,3.7,2696.2,2695.9,0.10359583]
[1646876454333,5.00894936,2696.1,2695.9,0.10359583]
[1646876455184,5.93695946,2696.1,2695.9,0.10359583]
[1646876455384,3.15291936,2696.1,2695.9,0.10359583]
[1646876455583,1.38778316,2696.3,2696.1,0.12506382]
[1646876455584,0.928,2696.2,2696.1,0.12506382]
[1646876455788,0.30767903,2696.3,2696.1,0.12506382]
[1646876456789,0.30767903,2696.3,2696.1,0.12767825]
[1646876456984,1.23558903,2696.3,2696.1,0.07767825]
[1646876457283,0.928,2696.2,2696.1,0.07767825]
[1646876457484,0.30767903,2696.3,2696.1,0.07767825]
[1646876457684,0.30767903,2696.3,2696.1,0.07506382]
[1646876457885,0.52551525,2696.5,2696.1,0.07506382]
[1646876458289,0.52551525,2696.5,2696.4,0.01271]